[Event "European Online Club-ch-F 2021"]
[Site "Online"]
[Date "2021.03.27"]
[Round "7.14"]
[White "Amin, Bassem"]
[Black "Maatoug, Redwan"]
[Result "1-0"]
[ECO "B50"]
[WhiteElo "2695"]
[BlackElo "2202"]
[Annotator "ChessBase"]
[PlyCount "61"]
[EventDate "2021.03.27"]
[EventType "team-tourn"]
[EventCountry "NET"]
[SourceTitle "playchess.com"]
[Source "ChessBase"]
[SourceQuality "1"]
[TimeControl "900+5"]

1. e4 {[%emt 0:00:00]} c5 {[%emt 0:00:07]} 2. Nf3 {[%emt 0:00:03]} Nc6 {[%emt 0:00:05]} 3. g3 {[%emt 0:00:07]} g6 {[%emt 0:00:08]} 4. Bg2 {[%emt 0:00:02]} Bg7 {[%emt 0:00:01]} 5. O-O {[%emt 0:00:02]} d6 {[%emt 0:00:18]} 6. c3 {[%emt 0:00:02]} Nf6 {[%emt 0:00:15]} 7. Re1 {[%emt 0:00:06]} O-O {[%emt 0:00:05]} 8. h3 {[%emt 0:00:04]} Ne5 {[%emt 0:01:14]} 9. d4 {[%emt 0:00:40]} Nxf3+ {[%emt 0:00:04]} 10. Qxf3 {[%emt 0:00:03]} cxd4 {[%emt 0:00:08]} 11. cxd4 {[%emt 0:00:00]} Qb6 {[%emt 0:00:02]} 12. Qd3 {[%emt 0:00:27]} Be6 {[%emt 0:01:39]} 13. Nc3 {[%emt 0:00:06]} Rac8 {[%emt 0:00:25]} 14. b3 {[%emt 0:00:47]} Qa6 {[%emt 0:00:14]} 15. Qxa6 {[%emt 0:00:39]} bxa6 {[%emt 0:00:01]} 16. Bb2 {[%emt 0:01:32]} Nd7 {[%emt 0:00:02]} 17. Rad1 {[%emt 0:00:29]} Nb6 {[%emt 0:00:02]} 18. e5 {[%emt 0:01:41]} dxe5 {[%emt 0:00:45]} 19. dxe5 {[%emt 0:00:00]} Rcd8 {[%emt 0:00:02]} 20. Ne4 {[%emt 0:00:47]} Bd5 {[%emt 0:00:34]} 21. Nc5 {[%emt 0:02:06]} Bxg2 {[%emt 0:00:30]} 22. Kxg2 {[%emt 0:00:00]} Rxd1 {[%emt 0:00:12]} 23. Rxd1 {[%emt 0:00:04]} a5 {[%emt 0:03:02]} 24. a4 {[%emt 0:00:05]} Rc8 {[%emt 0:00:11]} 25. Nb7 {[%emt 0:00:05]} h5 {[%emt 0:00:19]} 26. Rd8+ {[%emt 0:01:24]} Rxd8 {[%emt 0:00:41]} 27. Nxd8 {[%emt 0:00:00]} Nd7 {[%emt 0:00:32]} 28. Nc6 {[%emt 0:00:04]} Kf8 {[%emt 0:00:05]} 29. Bd4 {[%emt 0:00:11]} a6 {[%emt 0:00:32]} 30. f4 {[%emt 0:00:06]} f6 {[%emt 0:00:12]} 31. e6 {[%emt 0:00:06]} 1-0

[Event "European Online Club-ch-F 2021"]
[Site "Online"]
[Date "2021.03.27"]
[Round "7.15"]
[White "Cantin, Loic"]
[Black "Van Wely, Loek"]
[Result "0-1"]
[ECO "E60"]
[WhiteElo "2182"]
[BlackElo "2620"]
[Annotator "ChessBase"]
[PlyCount "78"]
[EventDate "2021.03.27"]
[EventType "team-tourn"]
[EventCountry "NET"]
[SourceTitle "playchess.com"]
[Source "ChessBase"]
[SourceQuality "1"]
[TimeControl "900+5"]

1. Nf3 {[%emt 0:00:00]} Nf6 {[%emt 0:00:04]} 2. c4 {[%emt 0:00:05]} g6 {[%emt 0:00:05]} 3. d4 {[%emt 0:00:03]} Bg7 {[%emt 0:00:02]} 4. g3 {[%emt 0:00:16]} c5 {[%emt 0:00:02]} 5. d5 {[%emt 0:00:05]} b5 {[%emt 0:00:03]} 6. cxb5 {[%emt 0:00:09]} a6 {[%emt 0:00:01]} 7. bxa6 {[%emt 0:00:15]} d6 {[%emt 0:00:03]} 8. Bg2 {[%emt 0:00:07]} O-O {[%emt 0:00:05]} 9. O-O {[%emt 0:00:15]} Nxa6 {[%emt 0:00:03]} 10. Nc3 {[%emt 0:00:55]} Bf5 {[%emt 0:00:12]} 11. Nd2 {[%emt 0:00:46]} Nb4 {[%emt 0:00:11]} 12. Nc4 {[%emt 0:00:18]} Ng4 {[%emt 0:02:00]} 13. h3 {[%emt 0:01:04]} Ne5 {[%emt 0:00:03]} 14. Ne3 {[%emt 0:00:05]} Bc8 {[%emt 0:00:03]} 15. Bd2 {[%emt 0:00:46]} Qb6 {[%emt 0:00:17]} 16. a3 {[%emt 0:00:36]} Na6 {[%emt 0:00:04]} 17. f4 {[%emt 0:00:15]} Nd7 {[%emt 0:00:03]} 18. Nc4 {[%emt 0:00:07]} Qd8 {[%emt 0:00:15]} 19. Ne4 {[%emt 0:02:50]} Nc7 {[%emt 0:00:22]} 20. Bc3 {[%emt 0:00:54]} Ba6 {[%emt 0:01:15]} 21. b3 {[%emt 0:00:31]} Bxc3 {[%emt 0:01:08]} 22. Nxc3 {[%emt 0:00:03]} Nb5 {[%emt 0:00:15]} 23. Nxb5 {[%emt 0:00:16]} Bxb5 {[%emt 0:00:00]} 24. Qc2 {[%emt 0:00:43]} Nb6 {[%emt 0:00:17]} 25. e4 {[%emt 0:00:33]} Bxc4 {[%emt 0:01:15]} 26. bxc4 {[%emt 0:00:03]} Ra4 {[%emt 0:00:02]} 27. Rfb1 {[%emt 0:00:35]} Rxc4 {[%emt 0:00:08]} 28. Qb3 {[%emt 0:00:03]} Rd4 {[%emt 0:00:04]} 29. a4 {[%emt 0:00:42]} Nc4 {[%emt 0:00:33]} 30. Qc3 {[%emt 0:00:11]} Nd2 {[%emt 0:00:40]} 31. Re1 {[%emt 0:00:48]} Qb6 {[%emt 0:00:33]} 32. a5 {[%emt 0:00:04]} Qb5 {[%emt 0:00:18]} 33. Rad1 {[%emt 0:00:22]} Nb3 {[%emt 0:00:55]} 34. Rb1 {[%emt 0:00:03]} Rd3 {[%emt 0:00:32]} 35. Qc2 {[%emt 0:00:53]} c4 {[%emt 0:00:14]} 36. Bf1 {[%emt 0:00:25]} Qc5+ {[%emt 0:00:14]} 37. Kh1 {[%emt 0:00:09]} Rxg3 {[%emt 0:00:28]} 38. Bxc4 {[%emt 0:00:02]} Nxa5 {[%emt 0:01:55]} 39. Kh2 {[%emt 0:00:45]} Rf3 {[%emt 0:00:17]} 0-1

[Event "European Online Club-ch-F 2021"]
[Site "Online"]
[Date "2021.03.27"]
[Round "7.16"]
[White "Hamdouchi, Hicham"]
[Black "Saatdjian, Stephane"]
[Result "1-0"]
[ECO "B23"]
[WhiteElo "2561"]
[BlackElo "2131"]
[Annotator "ChessBase"]
[PlyCount "53"]
[EventDate "2021.03.27"]
[EventType "team-tourn"]
[EventCountry "NET"]
[SourceTitle "playchess.com"]
[Source "ChessBase"]
[SourceQuality "1"]
[TimeControl "900+5"]

1. e4 {[%emt 0:00:00]} c5 {[%emt 0:00:02]} 2. Nc3 {[%emt 0:00:02]} a6 {[%emt 0:00:02]} 3. g4 {[%emt 0:00:03]} b5 {[%emt 0:00:04]} 4. Bg2 {[%emt 0:00:02]} Bb7 {[%emt 0:00:01]} 5. Nh3 {[%emt 0:00:20]} e6 {[%emt 0:00:19]} 6. O-O {[%emt 0:00:13]} b4 {[%emt 0:00:07]} 7. Ne2 {[%emt 0:00:03]} d5 {[%emt 0:00:29]} 8. d3 {[%emt 0:00:41]} dxe4 {[%emt 0:00:37]} 9. Ng3 {[%emt 0:00:08]} Nf6 {[%emt 0:00:21]} 10. g5 {[%emt 0:00:14]} Nd5 {[%emt 0:01:01]} 11. dxe4 {[%emt 0:00:37]} Nb6 {[%emt 0:00:08]} 12. Qg4 {[%emt 0:00:44]} N8d7 {[%emt 0:01:40]} 13. Bf4 {[%emt 0:01:12]} Nc4 {[%emt 0:00:41]} 14. Qe2 {[%emt 0:01:54]} Nxb2 {[%emt 0:00:52]} 15. Rab1 {[%emt 0:00:36]} Na4 {[%emt 0:00:06]} 16. Bd2 {[%emt 0:00:25]} Be7 {[%emt 0:00:44]} 17. f4 {[%emt 0:00:36]} a5 {[%emt 0:00:25]} 18. Rf2 {[%emt 0:01:09]} Ba6 {[%emt 0:00:24]} 19. Qf3 {[%emt 0:00:34]} Bc4 {[%emt 0:01:25]} 20. f5 {[%emt 0:01:29]} Ne5 {[%emt 0:00:55]} 21. Qh5 {[%emt 0:00:02]} O-O {[%emt 0:02:19]} 22. f6 {[%emt 0:01:20]} gxf6 {[%emt 0:00:16]} 23. gxf6 {[%emt 0:00:34]} Bxf6 {[%emt 0:00:03]} 24. Bg5 {[%emt 0:00:11]} Nd7 {[%emt 0:01:03]} 25. e5 {[%emt 0:00:44]} Be7 {[%emt 0:01:11]} 26. Be4 {[%emt 0:01:10]} f5 {[%emt 0:00:40]} 27. exf6 {[%emt 0:00:02]} 1-0

[Event "European Online Club-ch-F 2021"]
[Site "Online"]
[Date "2021.03.27"]
[Round "7.17"]
[White "Isik, Alparslan"]
[Black "Gorodetzky, Matan"]
[Result "1-0"]
[ECO "D33"]
[WhiteElo "2321"]
[BlackElo "2253"]
[Annotator "NA"]
[PlyCount "79"]
[EventDate "2021.03.27"]
[EventType "team-tourn"]
[EventCountry "NET"]
[SourceTitle "playchess.com"]
[Source "ChessBase"]
[SourceQuality "1"]
[TimeControl "900+5"]

1. d4 {[%emt 0:00:00]} d5 {[%emt 0:00:04]} 2. c4 {[%emt 0:00:02]} e6 {[%emt 0:00:02]} 3. Nf3 {[%emt 0:00:03]} c5 {[%emt 0:00:03]} 4. cxd5 {[%emt 0:00:02]} exd5 {[%emt 0:00:02]} 5. Nc3 {[%emt 0:00:04]} Nc6 {[%emt 0:00:02]} 6. g3 {[%emt 0:00:02]} Nf6 {[%emt 0:00:03]} 7. Bg2 {[%emt 0:00:02]} cxd4 {[%emt 0:00:02]} 8. Nxd4 {[%emt 0:00:02]} Bc5 {[%emt 0:00:01]} 9. Nb3 {[%emt 0:00:07]} Bb6 {[%emt 0:00:02]} 10. O-O {[%emt 0:00:03]} d4 {[%emt 0:00:02]} 11. Na4 {[%emt 0:00:07]} O-O {[%emt 0:00:02]} 12. Bg5 {[%emt 0:00:14]} Re8 {[%emt 0:00:02]} 13. Rc1 {[%emt 0:00:22]} Bg4 {[%emt 0:00:30]} 14. Re1 {[%emt 0:00:04]} h6 {[%emt 0:00:03]} 15. Bxf6 {[%emt 0:00:07]} Qxf6 {[%emt 0:00:03]} 16. Nac5 {[%emt 0:00:02]} Rac8 {[%emt 0:00:33]} 17. Qd2 {[%emt 0:01:29]} Re7 {[%emt 0:00:14]} 18. h3 {[%emt 0:01:01]} Bh5 {[%emt 0:00:07]} 19. Nd3 {[%emt 0:00:03]} g5 {[%emt 0:00:27]} 20. Nb4 {[%emt 0:00:20]} Rce8 {[%emt 0:00:43]} 21. Nd5 {[%emt 0:00:11]} Qe5 {[%emt 0:00:33]} 22. Nxe7+ {[%emt 0:00:05]} Rxe7 {[%emt 0:00:03]} 23. Bxc6 {[%emt 0:00:52]} bxc6 {[%emt 0:00:04]} 24. Rxc6 {[%emt 0:00:02]} d3 {[%emt 0:01:13]} 25. Qxd3 {[%emt 0:01:39]} Qxb2 {[%emt 0:00:12]} 26. Rxh6 {[%emt 0:00:21]} Bxe2 {[%emt 0:00:57]} 27. Qh7+ {[%emt 0:00:30]} Kf8 {[%emt 0:00:03]} 28. Qh8+ {[%emt 0:00:03]} Qxh8 {[%emt 0:00:02]} 29. Rxh8+ {[%emt 0:00:01]} Kg7 {[%emt 0:00:01]} 30. Rc8 {[%emt 0:00:07]} Re6 {[%emt 0:00:53]} 31. Rc2 {[%emt 0:00:10]} Bg4 {[%emt 0:00:23]} 32. Rxe6 {[%emt 0:00:04]} Bxe6 {[%emt 0:00:02]} 33. Kg2 {[%emt 0:00:14]} f5 {[%emt 0:00:12]} 34. f3 {[%emt 0:00:21]} Kf6 {[%emt 0:00:31]} 35. Nc5 {[%emt 0:00:09]} Bxc5 {[%emt 0:00:36]} 36. Rxc5 {[%emt 0:00:03]} g4 {[%emt 0:00:28]} 37. fxg4 {[%emt 0:00:06]} fxg4 {[%emt 0:00:02]} 38. hxg4 {[%emt 0:00:05]} Bxa2 {[%emt 0:00:04]} 39. Ra5 {[%emt 0:00:04]} Be6 {[%emt 0:00:09]} 40. Kh3 {[%emt 0:00:13]} 1-0

[Event "European Online Club-ch-F 2021"]
[Site "Online"]
[Date "2021.03.27"]
[Round "7.18"]
[White "Katkov, Michelle"]
[Black "Karaoglan, Doruk"]
[Result "0-1"]
[ECO "B22"]
[WhiteElo "2078"]
[BlackElo "2230"]
[Annotator "NA"]
[PlyCount "90"]
[EventDate "2021.03.27"]
[EventType "team-tourn"]
[EventCountry "NET"]
[SourceTitle "playchess.com"]
[Source "ChessBase"]
[SourceQuality "1"]
[TimeControl "900+5"]

1. e4 {[%emt 0:00:00]} c5 {[%emt 0:00:12]} 2. c3 {[%emt 0:00:02]} Nf6 {[%emt 0:00:29]} 3. e5 {[%emt 0:00:03]} Nd5 {[%emt 0:00:03]} 4. d4 {[%emt 0:00:02]} cxd4 {[%emt 0:00:02]} 5. cxd4 {[%emt 0:00:06]} e6 {[%emt 0:00:03]} 6. Nf3 {[%emt 0:00:05]} b6 {[%emt 0:00:04]} 7. Nc3 {[%emt 0:01:20]} Nxc3 {[%emt 0:00:04]} 8. bxc3 {[%emt 0:00:03]} Qc7 {[%emt 0:00:03]} 9. Qc2 {[%emt 0:00:23]} Bb7 {[%emt 0:00:41]} 10. Be2 {[%emt 0:00:21]} d6 {[%emt 0:00:53]} 11. O-O {[%emt 0:00:22]} Nd7 {[%emt 0:00:15]} 12. Bf4 {[%emt 0:02:09]} dxe5 {[%emt 0:05:15]} 13. Nxe5 {[%emt 0:00:19]} Bd6 {[%emt 0:00:03]} 14. Bb5 {[%emt 0:00:30]} O-O-O {[%emt 0:00:07]} 15. Bxd7+ {[%emt 0:04:19]} Rxd7 {[%emt 0:00:04]} 16. Nxd7 {[%emt 0:00:03]} Bxf4 {[%emt 0:00:02]} 17. Ne5 {[%emt 0:00:05]} f6 {[%emt 0:00:40]} 18. Nf3 {[%emt 0:00:04]} g5 {[%emt 0:02:28]} 19. Qe2 {[%emt 0:00:11]} Re8 {[%emt 0:01:21]} 20. g3 {[%emt 0:01:01]} g4 {[%emt 0:00:20]} 21. Nd2 {[%emt 0:00:27]} Qc6 {[%emt 0:01:34]} 22. f3 {[%emt 0:00:18]} Bxd2 {[%emt 0:00:06]} 23. Qxd2 {[%emt 0:00:04]} gxf3 {[%emt 0:00:01]} 24. Rf2 {[%emt 0:00:15]} e5 {[%emt 0:00:18]} 25. d5 {[%emt 0:01:27]} Qxd5 {[%emt 0:00:49]} 26. Qxd5 {[%emt 0:00:04]} Bxd5 {[%emt 0:00:01]} 27. Rd2 {[%emt 0:00:06]} Bb7 {[%emt 0:00:10]} 28. Kf2 {[%emt 0:00:08]} e4 {[%emt 0:00:09]} 29. Ke3 {[%emt 0:00:16]} Ba6 {[%emt 0:00:24]} 30. Rd6 {[%emt 0:00:20]} f5 {[%emt 0:00:25]} 31. Rf6 {[%emt 0:00:23]} Re5 {[%emt 0:00:08]} 32. Rd1 {[%emt 0:00:14]} Bd3 {[%emt 0:00:04]} 33. Rd6 {[%emt 0:00:56]} Ra5 {[%emt 0:00:04]} 34. Rd2 {[%emt 0:00:10]} Ra3 {[%emt 0:00:08]} 35. R6xd3 {[%emt 0:01:04]} exd3 {[%emt 0:00:01]} 36. Kxd3 {[%emt 0:00:01]} Kd7 {[%emt 0:00:03]} 37. Kd4 {[%emt 0:00:13]} Ke6 {[%emt 0:00:03]} 38. Rf2 {[%emt 0:00:02]} Ra4+ {[%emt 0:00:09]} 39. Ke3 {[%emt 0:00:06]} Ra3 {[%emt 0:00:03]} 40. Rc2 {[%emt 0:00:02]} b5 {[%emt 0:00:02]} 41. Kf4 {[%emt 0:00:09]} f2 {[%emt 0:00:17]} 42. Rxf2 {[%emt 0:00:06]} Rxc3 {[%emt 0:00:02]} 43. Kg5 {[%emt 0:00:06]} Rc4 {[%emt 0:00:11]} 44. Rxf5 {[%emt 0:00:06]} h6+ {[%emt 0:00:02]} 45. Kg6 {[%emt 0:00:06]} Rg4+ {[%emt 0:00:01]} 0-1

[Event "European Online Club-ch-F 2021"]
[Site "Online"]
[Date "2021.03.27"]
[Round "7.19"]
[White "Apaydin, Fethi"]
[Black "Stolyarsky, Yegor"]
[Result "1/2-1/2"]
[ECO "C26"]
[WhiteElo "2260"]
[BlackElo "2063"]
[Annotator "NA"]
[PlyCount "139"]
[EventDate "2021.03.27"]
[EventType "team-tourn"]
[EventCountry "NET"]
[SourceTitle "playchess.com"]
[Source "ChessBase"]
[SourceQuality "1"]
[TimeControl "900+5"]

1. e4 {[%emt 0:00:00]} e5 {[%emt 0:00:04]} 2. Nc3 {[%emt 0:00:06]} Nf6 {[%emt 0:00:02]} 3. g3 {[%emt 0:00:05]} Bc5 {[%emt 0:00:05]} 4. Bg2 {[%emt 0:00:04]} d6 {[%emt 0:00:03]} 5. Na4 {[%emt 0:00:36]} Bb6 {[%emt 0:00:14]} 6. Nxb6 {[%emt 0:00:18]} axb6 {[%emt 0:00:00]} 7. Ne2 {[%emt 0:00:02]} Nc6 {[%emt 0:00:03]} 8. O-O {[%emt 0:00:05]} Bg4 {[%emt 0:00:10]} 9. h3 {[%emt 0:00:25]} Be6 {[%emt 0:00:13]} 10. d4 {[%emt 0:00:31]} exd4 {[%emt 0:00:04]} 11. Nxd4 {[%emt 0:00:01]} Nxd4 {[%emt 0:00:06]} 12. Qxd4 {[%emt 0:00:01]} O-O {[%emt 0:00:03]} 13. b3 {[%emt 0:00:10]} d5 {[%emt 0:00:22]} 14. e5 {[%emt 0:00:04]} Ne4 {[%emt 0:00:15]} 15. Bb2 {[%emt 0:00:07]} Qg5 {[%emt 0:00:30]} 16. a4 {[%emt 0:00:21]} c5 {[%emt 0:00:24]} 17. Qd3 {[%emt 0:00:13]} Rac8 {[%emt 0:01:47]} 18. c4 {[%emt 0:00:48]} Bf5 {[%emt 0:01:00]} 19. g4 {[%emt 0:03:05]} dxc4 {[%emt 0:03:28]} 20. Qxc4 {[%emt 0:00:06]} Nd2 {[%emt 0:00:27]} 21. Bc1 {[%emt 0:00:16]} Nxc4 {[%emt 0:04:03]} 22. Bxg5 {[%emt 0:00:04]} Bd3 {[%emt 0:00:02]} 23. bxc4 {[%emt 0:00:10]} Bxf1 {[%emt 0:00:02]} 24. Kxf1 {[%emt 0:00:05]} Rfe8 {[%emt 0:00:22]} 25. f4 {[%emt 0:00:23]} Rc7 {[%emt 0:00:29]} 26. Rd1 {[%emt 0:00:31]} Ra8 {[%emt 0:00:23]} 27. Rd8+ {[%emt 0:00:20]} Rxd8 {[%emt 0:00:03]} 28. Bxd8 {[%emt 0:00:02]} Rd7 {[%emt 0:00:07]} 29. Bxb6 {[%emt 0:00:01]} Rd4 {[%emt 0:00:01]} 30. Bd5 {[%emt 0:00:05]} Rxf4+ {[%emt 0:00:12]} 31. Kg2 {[%emt 0:00:02]} Rd4 {[%emt 0:00:11]} 32. Bxc5 {[%emt 0:00:03]} Rd2+ {[%emt 0:00:01]} 33. Kg3 {[%emt 0:00:04]} Ra2 {[%emt 0:00:18]} 34. Bxb7 {[%emt 0:00:12]} Rxa4 {[%emt 0:00:03]} 35. Bd5 {[%emt 0:00:02]} Ra1 {[%emt 0:00:15]} 36. Bd6 {[%emt 0:00:02]} Rd1 {[%emt 0:00:05]} 37. e6 {[%emt 0:00:09]} fxe6 {[%emt 0:00:17]} 38. Bxe6+ {[%emt 0:00:01]} Kh8 {[%emt 0:00:01]} 39. c5 {[%emt 0:00:01]} h5 {[%emt 0:00:05]} 40. gxh5 {[%emt 0:00:05]} Kh7 {[%emt 0:00:13]} 41. Bf5+ {[%emt 0:00:23]} Kh8 {[%emt 0:00:22]} 42. Bf4 {[%emt 0:00:08]} Rd5 {[%emt 0:00:08]} 43. Bg6 {[%emt 0:04:44]} Rxc5 {[%emt 0:00:10]} 44. h4 {[%emt 0:00:07]} Ra5 {[%emt 0:00:21]} 45. Bg5 {[%emt 0:00:12]} Ra1 {[%emt 0:00:22]} 46. Kf4 {[%emt 0:00:03]} Ra5 {[%emt 0:00:09]} 47. Bd3 {[%emt 0:00:17]} Rd5 {[%emt 0:00:10]} 48. Ke4 {[%emt 0:00:06]} Ra5 {[%emt 0:00:05]} 49. Bc4 {[%emt 0:00:05]} Rc5 {[%emt 0:00:04]} 50. Bd5 {[%emt 0:00:04]} Rc2 {[%emt 0:00:17]} 51. Kf5 {[%emt 0:00:11]} Rc5 {[%emt 0:00:11]} 52. Ke6 {[%emt 0:00:02]} Ra5 {[%emt 0:00:04]} 53. Kd6 {[%emt 0:00:04]} Ra6+ {[%emt 0:00:05]} 54. Ke7 {[%emt 0:00:14]} Ra1 {[%emt 0:00:15]} 55. Be6 {[%emt 0:01:00]} Re1 {[%emt 0:00:04]} 56. Kf7 {[%emt 0:00:06]} Rf1+ {[%emt 0:00:02]} 57. Kg6 {[%emt 0:00:08]} Rf2 {[%emt 0:00:06]} 58. Bd5 {[%emt 0:01:01]} Rf6+ {[%emt 0:00:10]} 59. Bxf6 {[%emt 0:00:22]} gxf6 {[%emt 0:00:00]} 60. Kf5 {[%emt 0:00:14]} Kh7 {[%emt 0:00:02]} 61. Be4 {[%emt 0:00:04]} Kh8 {[%emt 0:00:03]} 62. Bc6 {[%emt 0:00:32]} Kg8 {[%emt 0:00:00]} 63. Bd7 {[%emt 0:00:07]} Kh8 {[%emt 0:00:00]} 64. Kg6 {[%emt 0:00:05]} Kg8 {[%emt 0:00:01]} 65. Bf5 {[%emt 0:00:04]} Kh8 {[%emt 0:00:00]} 66. h6 {[%emt 0:00:08]} Kg8 {[%emt 0:00:00]} 67. h5 {[%emt 0:00:07]} Kh8 {[%emt 0:00:00]} 68. Kxf6 {[%emt 0:00:05]} Kg8 {[%emt 0:00:00]} 69. h7+ {[%emt 0:00:03]} Kh8 {[%emt 0:00:00]} 70. h6 {[%emt 0:00:04]} 1/2-1/2

[Event "European Online Club-ch-F 2021"]
[Site "Online"]
[Date "2021.03.27"]
[Round "7.20"]
[White "Gleizer, Adar"]
[Black "Ozturk, Efe Hakan"]
[Result "1-0"]
[ECO "B15"]
[WhiteElo "1833"]
[BlackElo "2030"]
[Annotator "NA"]
[PlyCount "63"]
[EventDate "2021.03.27"]
[EventType "team-tourn"]
[EventCountry "NET"]
[SourceTitle "playchess.com"]
[Source "ChessBase"]
[SourceQuality "1"]
[TimeControl "900+5"]

1. e4 {[%emt 0:00:00]} g6 {[%emt 0:00:07]} 2. d4 {[%emt 0:00:03]} Bg7 {[%emt 0:00:02]} 3. Nf3 {[%emt 0:00:05]} c6 {[%emt 0:00:08]} 4. Nc3 {[%emt 0:00:47]} d5 {[%emt 0:00:03]} 5. e5 {[%emt 0:00:34]} Bg4 {[%emt 0:00:19]} 6. h3 {[%emt 0:00:10]} Bxf3 {[%emt 0:00:04]} 7. Qxf3 {[%emt 0:00:03]} e6 {[%emt 0:00:07]} 8. h4 {[%emt 0:00:17]} h5 {[%emt 0:02:00]} 9. Bg5 {[%emt 0:00:18]} Qb6 {[%emt 0:00:10]} 10. O-O-O {[%emt 0:00:12]} Nd7 {[%emt 0:00:50]} 11. Bd3 {[%emt 0:02:09]} Nh6 {[%emt 0:01:48]} 12. Qf4 {[%emt 0:00:50]} a6 {[%emt 0:01:52]} 13. Rhe1 {[%emt 0:01:09]} Nf5 {[%emt 0:01:38]} 14. Bxf5 {[%emt 0:00:53]} gxf5 {[%emt 0:00:04]} 15. f3 {[%emt 0:00:09]} Nf8 {[%emt 0:02:15]} 16. g4 {[%emt 0:01:06]} Ng6 {[%emt 0:00:03]} 17. Qg3 {[%emt 0:00:03]} hxg4 {[%emt 0:01:04]} 18. fxg4 {[%emt 0:00:04]} f4 {[%emt 0:00:13]} 19. Qf2 {[%emt 0:00:16]} Nxe5 {[%emt 0:01:21]} 20. Qxf4 {[%emt 0:00:54]} Nc4 {[%emt 0:00:06]} 21. b3 {[%emt 0:02:05]} Qa5 {[%emt 0:00:39]} 22. Na4 {[%emt 0:00:39]} O-O {[%emt 0:01:23]} 23. Bf6 {[%emt 0:00:38]} Bxf6 {[%emt 0:00:03]} 24. Qxf6 {[%emt 0:00:02]} b5 {[%emt 0:00:23]} 25. bxc4 {[%emt 0:00:36]} Qxa4 {[%emt 0:00:04]} 26. Re5 {[%emt 0:00:33]} Qa3+ {[%emt 0:00:03]} 27. Kd2 {[%emt 0:00:10]} Qb4+ {[%emt 0:00:05]} 28. Ke3 {[%emt 0:00:52]} Qc3+ {[%emt 0:00:04]} 29. Kf4 {[%emt 0:00:03]} Rfd8 {[%emt 0:00:20]} 30. Rh5 {[%emt 0:00:13]} e5+ {[%emt 0:00:01]} 31. Qxe5 {[%emt 0:00:27]} f6 {[%emt 0:00:04]} 32. Qxf6 {[%emt 0:00:22]} 1-0

[Event "European Online Club-ch-F 2021"]
[Site "Online"]
[Date "2021.03.27"]
[Round "8.1"]
[White "Pulkkinen, Kari"]
[Black "Gorodetzky, Matan"]
[Result "0-1"]
[ECO "C11"]
[WhiteElo "2256"]
[BlackElo "2253"]
[Annotator "NA"]
[PlyCount "122"]
[EventDate "2021.03.27"]
[EventType "team-tourn"]
[EventCountry "NET"]
[SourceTitle "playchess.com"]
[Source "ChessBase"]
[SourceQuality "1"]
[TimeControl "900+5"]

1. e4 {[%emt 0:00:00]} e6 {[%emt 0:00:02]} 2. d4 {[%emt 0:00:03]} d5 {[%emt 0:00:03]} 3. Nc3 {[%emt 0:00:02]} Nf6 {[%emt 0:00:05]} 4. e5 {[%emt 0:00:02]} Nfd7 {[%emt 0:00:01]} 5. f4 {[%emt 0:00:02]} c5 {[%emt 0:00:02]} 6. Nf3 {[%emt 0:00:02]} Nc6 {[%emt 0:00:01]} 7. Be3 {[%emt 0:00:01]} cxd4 {[%emt 0:00:02]} 8. Nxd4 {[%emt 0:00:03]} Bc5 {[%emt 0:00:02]} 9. Qd2 {[%emt 0:00:02]} O-O {[%emt 0:00:03]} 10. O-O-O {[%emt 0:00:02]} Bxd4 {[%emt 0:00:06]} 11. Bxd4 {[%emt 0:00:02]} a6 {[%emt 0:00:01]} 12. Qf2 {[%emt 0:00:17]} b5 {[%emt 0:00:05]} 13. Bd3 {[%emt 0:00:02]} Nxd4 {[%emt 0:00:52]} 14. Qxd4 {[%emt 0:00:04]} Qb6 {[%emt 0:00:02]} 15. Ne2 {[%emt 0:00:10]} b4 {[%emt 0:00:16]} 16. Qxb6 {[%emt 0:00:12]} Nxb6 {[%emt 0:00:03]} 17. Nd4 {[%emt 0:00:02]} Bd7 {[%emt 0:00:06]} 18. Rhe1 {[%emt 0:00:12]} a5 {[%emt 0:00:31]} 19. g4 {[%emt 0:00:18]} a4 {[%emt 0:00:17]} 20. f5 {[%emt 0:00:21]} a3 {[%emt 0:00:06]} 21. b3 {[%emt 0:00:08]} Rfe8 {[%emt 0:00:28]} 22. Kd2 {[%emt 0:00:34]} Rac8 {[%emt 0:00:36]} 23. Rc1 {[%emt 0:00:04]} Rc3 {[%emt 0:00:09]} 24. Ne2 {[%emt 0:00:22]} Rcc8 {[%emt 0:00:52]} 25. Nd4 {[%emt 0:00:08]} Rc3 {[%emt 0:00:16]} 26. Ne2 {[%emt 0:00:06]} Rc7 {[%emt 0:00:18]} 27. Nd4 {[%emt 0:00:08]} Rec8 {[%emt 0:00:08]} 28. f6 {[%emt 0:00:27]} g6 {[%emt 0:00:15]} 29. h4 {[%emt 0:00:04]} h6 {[%emt 0:00:10]} 30. g5 {[%emt 0:00:30]} h5 {[%emt 0:00:03]} 31. Rf1 {[%emt 0:00:53]} Be8 {[%emt 0:03:12]} 32. Rf4 {[%emt 0:00:13]} Rd8 {[%emt 0:00:05]} 33. Ke3 {[%emt 0:00:28]} Rb8 {[%emt 0:00:47]} 34. Ne2 {[%emt 0:01:46]} Nd7 {[%emt 0:00:04]} 35. Kd4 {[%emt 0:00:02]} Nc5 {[%emt 0:00:27]} 36. Rff1 {[%emt 0:02:24]} Bb5 {[%emt 0:01:22]} 37. Bxb5 {[%emt 0:00:30]} Rxb5 {[%emt 0:00:03]} 38. c4 {[%emt 0:00:19]} bxc3 {[%emt 0:00:09]} 39. Rxc3 {[%emt 0:00:23]} Rb4+ {[%emt 0:00:06]} 40. Ke3 {[%emt 0:00:08]} Re4+ {[%emt 0:00:05]} 41. Kf3 {[%emt 0:00:08]} Rxh4 {[%emt 0:02:01]} 42. Nf4 {[%emt 0:01:19]} Na6 {[%emt 0:01:32]} 43. Rfc1 {[%emt 0:00:16]} Rxc3+ {[%emt 0:00:19]} 44. Rxc3 {[%emt 0:00:03]} Rh1 {[%emt 0:00:36]} 45. Rc8+ {[%emt 0:00:18]} Kh7 {[%emt 0:00:02]} 46. Rf8 {[%emt 0:00:40]} Rf1+ {[%emt 0:00:04]} 47. Kg3 {[%emt 0:00:11]} Rg1+ {[%emt 0:00:17]} 48. Kf2 {[%emt 0:00:14]} Rxg5 {[%emt 0:00:02]} 49. Rxf7+ {[%emt 0:00:07]} Kh6 {[%emt 0:00:01]} 50. Nxe6 {[%emt 0:00:48]} Rxe5 {[%emt 0:00:12]} 51. Re7 {[%emt 0:00:10]} Rf5+ {[%emt 0:00:13]} 52. Kg3 {[%emt 0:00:09]} Rxf6 {[%emt 0:00:02]} 53. Nf4 {[%emt 0:00:02]} Nb4 {[%emt 0:00:08]} 54. Ra7 {[%emt 0:00:06]} Nxa2 {[%emt 0:00:05]} 55. Rxa3 {[%emt 0:00:02]} Nc3 {[%emt 0:00:02]} 56. Nh3 {[%emt 0:00:16]} d4 {[%emt 0:00:07]} 57. b4 {[%emt 0:00:03]} g5 {[%emt 0:00:08]} 58. Ra8 {[%emt 0:00:13]} Ne4+ {[%emt 0:00:09]} 59. Kg2 {[%emt 0:00:06]} g4 {[%emt 0:00:01]} 60. Ng1 {[%emt 0:00:10]} Rf2+ {[%emt 0:00:03]} 61. Kh1 {[%emt 0:00:02]} Ng3# {[%emt 0:00:01]} 0-1